[Event "Goteborg Open 2018"]
[Site "Molnlycke kulturhus, Biblioteksgatan 2, Molnlycke, Sweden"]
[Date "2018.08.19"]
[Round "7.7"]
[White "Bengtsson, Jessica"]
[Black "Lacko, Pavel"]
[Result "1-0"]
[TimeControl "15 minutes + 5 seconds per move from move one (Round 1 - 4) / 90 minutes + 30 seconds per move from move one (Round 5 - 8)"]
[WhiteFideId "1711083"]
[BlackFideId "1701274"]
[WhiteElo "1978"]
[BlackElo "2209"]

1. e4 {[%clk 01:30:55]} {[%emt 00:00:03]} e5 {[%clk 01:30:49]} {[%emt
00:00:12]} 2. Nf3 {[%clk 01:31:10]} {[%emt 00:00:16]} Nc6 {[%clk 01:31:14]}
{[%emt 00:00:06]} 3. Bb5 {[%clk 01:31:21]} {[%emt 00:00:19]} Nf6 {[%clk
01:30:51]} {[%emt 00:00:52]} 4. O-O {[%clk 01:30:36]} {[%emt 00:01:14]} d6
{[%clk 01:30:57]} {[%emt 00:00:24]} 5. d4 {[%clk 01:28:28]} {[%emt 00:02:38]}
exd4 {[%clk 01:31:11]} {[%emt 00:00:18]} 6. Nxd4 {[%clk 01:28:07]} {[%emt
00:00:50]} Bd7 {[%clk 01:31:30]} {[%emt 00:00:11]} 7. Nc3 {[%clk 01:27:46]}
{[%emt 00:00:51]} Be7 {[%clk 01:31:43]} {[%emt 00:00:17]} 8. Re1 {[%clk
01:24:54]} {[%emt 00:03:22]} O-O {[%clk 01:27:10]} {[%emt 00:05:02]} 9. Bxc6
{[%clk 01:23:05]} {[%emt 00:02:20]} bxc6 {[%clk 01:27:11]} {[%emt 00:00:30]} 10.
Qf3 {[%clk 01:16:07]} {[%emt 00:07:26]} Ng4 {[%clk 01:15:39]} {[%emt 00:12:02]}
11. Nxc6 {[%clk 01:09:36]} {[%emt 00:07:01]} Bxc6 {[%clk 01:03:20]} {[%emt
00:12:49]} 12. Qxg4 {[%clk 01:09:09]} {[%emt 00:00:57]} g6 {[%clk 00:52:49]}
{[%emt 00:11:02]} 13. Bh6 {[%clk 01:06:45]} {[%emt 00:02:53]} Re8 {[%clk
00:49:07]} {[%emt 00:04:12]} 14. Nd5 {[%clk 01:03:11]} {[%emt 00:04:03]} Bxd5
{[%clk 00:49:09]} {[%emt 00:00:29]} 15. exd5 {[%clk 01:03:35]} {[%emt
00:00:06]} Bf6 {[%clk 00:49:24]} {[%emt 00:00:15]} 16. c3 {[%clk 00:57:48]}
{[%emt 00:06:17]} Rb8 {[%clk 00:41:10]} {[%emt 00:08:44]} 17. Re2 {[%clk
00:37:04]} {[%emt 00:21:13]} Rxe2 {[%clk 00:38:02]} {[%emt 00:03:39]} 18. Qxe2
{[%clk 00:37:30]} {[%emt 00:00:03]} Bg5 {[%clk 00:38:22]} {[%emt 00:00:10]} 19.
Bxg5 {[%clk 00:36:58]} {[%emt 00:01:03]} Qxg5 {[%clk 00:38:47]} {[%emt
00:00:05]} 20. Rd1 {[%clk 00:36:14]} {[%emt 00:01:14]} a5 {[%clk 00:33:25]}
{[%emt 00:05:52]} 21. b3 {[%clk 00:34:03]} {[%emt 00:02:41]} Qf6 {[%clk
00:32:56]} {[%emt 00:00:59]} 22. Rc1 {[%clk 00:25:51]} {[%emt 00:08:42]} h5
{[%clk 00:30:18]} {[%emt 00:03:09]} 23. Qe3 {[%clk 00:23:30]} {[%emt 00:02:50]}
Ra8 {[%clk 00:28:33]} {[%emt 00:02:16]} 24. Re1 {[%clk 00:20:31]} {[%emt
00:03:29]} a4 {[%clk 00:25:36]} {[%emt 00:03:28]} 25. b4 {[%clk 00:20:44]}
{[%emt 00:00:17]} a3 {[%clk 00:25:53]} {[%emt 00:00:13]} 26. h3 {[%clk
00:19:37]} {[%emt 00:01:36]} Qf5 {[%clk 00:24:53]} {[%emt 00:01:31]} 27. Qe4
{[%clk 00:19:30]} {[%emt 00:00:37]} Qf6 {[%clk 00:23:40]} {[%emt 00:01:42]} 28.
Qc4 {[%clk 00:19:13]} {[%emt 00:00:47]} Qf5 {[%clk 00:22:36]} {[%emt 00:01:34]}
29. Qe4 {[%clk 00:15:30]} {[%emt 00:04:12]} Qf6 {[%clk 00:18:31]} {[%emt
00:03:53]} 30. Re3 {[%clk 00:15:43]} {[%emt 00:00:59]} Kg7 {[%clk 00:17:20]}
{[%emt 00:01:42]} 31. g3 {[%clk 00:15:13]} {[%emt 00:01:00]} h4 {[%clk
00:17:00]} {[%emt 00:00:49]} 32. Qxh4 {[%clk 00:13:28]} {[%emt 00:02:15]} Qxh4
{[%clk 00:16:46]} {[%emt 00:00:45]} 33. gxh4 {[%clk 00:13:54]} {[%emt
00:00:03]} Rb8 {[%clk 00:17:00]} {[%emt 00:00:17]} 34. Re7 {[%clk 00:06:10]}
{[%emt 00:08:14]} Rb7 {[%clk 00:15:22]} {[%emt 00:02:08]} 35. Kf1 {[%clk
00:06:01]} {[%emt 00:00:38]} Kf6 {[%clk 00:12:52]} {[%emt 00:03:01]} 36. Re8
{[%clk 00:06:22]} {[%emt 00:00:09]} Rb5 {[%clk 00:13:02]} {[%emt 00:00:20]} 37.
Ra8 {[%clk 00:06:38]} {[%emt 00:00:14]} Rxd5 {[%clk 00:12:31]} {[%emt
00:01:00]} 38. Rxa3 {[%clk 00:07:02]} {[%emt 00:00:07]} Rd3 {[%clk 00:12:54]}
{[%emt 00:00:07]} 39. Kg2 {[%clk 00:06:23]} {[%emt 00:01:08]} Ke6 {[%clk
00:13:04]} {[%emt 00:00:20]} 40. Rb3 {[%clk 00:03:14]} {[%emt 00:03:40]} Rd2
{[%clk 00:05:20]} {[%emt 00:08:13]} 41. a4 {[%clk 00:02:56]} {[%emt 00:00:48]}
Ra2 {[%clk 00:05:44]} {[%emt 00:00:05]} 42. a5 {[%clk 00:03:22]} {[%emt
00:00:05]} Kd5 {[%clk 00:06:09]} {[%emt 00:00:05]} 43. Rb1 {[%clk 00:03:27]}
{[%emt 00:00:23]} Kc4 {[%clk 00:06:18]} {[%emt 00:00:22]} 44. Rc1 {[%clk
00:02:28]} {[%emt 00:01:29]} Kd3 {[%clk 00:06:22]} {[%emt 00:00:26]} 45. c4
{[%clk 00:02:00]} {[%emt 00:00:58]} Ra4 {[%clk 00:06:07]} {[%emt 00:00:45]} 46.
c5 {[%clk 00:01:18]} {[%emt 00:01:13]} d5 {[%clk 00:06:31]} {[%emt 00:00:06]}
47. Rb1 {[%clk 00:01:24]} {[%emt 00:00:22]} Kc2 {[%clk 00:06:36]} {[%emt
00:00:26]} 48. Re1 {[%clk 00:01:33]} {[%emt 00:00:21]} d4 {[%clk 00:04:18]}
{[%emt 00:02:49]} 49. Re2+ {[%clk 00:01:02]} {[%emt 00:01:00]} Kc3 {[%clk
00:04:36]} {[%emt 00:00:12]} 50. Re7 {[%clk 00:00:42]} {[%emt 00:00:51]} d3
{[%clk 00:04:38]} {[%emt 00:00:28]} 51. Kf3 {[%clk 00:00:50]} {[%emt 00:00:21]}
Rxb4 {[%clk 00:04:42]} {[%emt 00:00:28]} 52. Rd7 {[%clk 00:00:43]} {[%emt
00:00:36]} Rd4 {[%clk 00:01:54]} {[%emt 00:03:18]} 53. c6 {[%clk 00:00:35]}
{[%emt 00:00:38]} d2 {[%clk 00:00:55]} {[%emt 00:01:29]} 54. Rxd4 {[%clk
00:01:12]} {[%emt 00:00:23]} Kxd4 {[%clk 00:01:53]} {[%emt 00:00:02]} 55. Ke2
{[%clk 00:01:36]} {[%emt 00:00:06]} Kc5 {[%clk 00:02:10]} {[%emt 00:00:14]} 56.
Kxd2 {[%clk 00:00:40]} {[%emt 00:01:26]} Kb5 {[%clk 00:02:35]} {[%emt
00:00:05]} 57. Ke3 {[%clk 00:00:36]} {[%emt 00:00:35]} Kxa5 {[%clk 00:03:01]}
{[%emt 00:00:04]} 58. Kd4 {[%clk 00:00:44]} {[%emt 00:00:21]} Kb6 {[%clk
00:03:10]} {[%emt 00:00:21]} 59. Kd5 {[%clk 00:00:36]} {[%emt 00:00:39]} Kb5
{[%clk 00:03:31]} {[%emt 00:00:09]} 60. f4 {[%clk 00:00:55]} {[%emt 00:00:10]}
f5 {[%clk 00:03:50]} {[%emt 00:00:11]} 61. Ke6 {[%clk 00:00:35]} {[%emt
00:00:51]} Kxc6 {[%clk 00:04:15]} {[%emt 00:00:05]} 62. Kf6 {[%clk 00:00:36]}
{[%emt 00:00:28]} Kd5 {[%clk 00:04:38]} {[%emt 00:00:07]} 63. Kxg6 {[%clk
00:00:58]} {[%emt 00:00:08]} c5 {[%clk 00:04:41]} {[%emt 00:00:27]} 64. h5
{[%clk 00:01:20]} {[%emt 00:00:08]} c4 {[%clk 00:05:00]} {[%emt 00:00:12]} 65.
h6 {[%clk 00:01:46]} {[%emt 00:00:04]} c3 {[%clk 00:05:27]} {[%emt 00:00:03]}
66. h7 {[%clk 00:02:12]} {[%emt 00:00:04]} c2 {[%clk 00:05:53]} {[%emt
00:00:04]} 67. h8=Q {[%clk 00:02:31]} {[%emt 00:00:11]} c1=Q {[%clk 00:06:18]}
{[%emt 00:00:06]} 68. Qe5+ {[%clk 00:02:05]} {[%emt 00:00:56]} Kc6 {[%clk
00:06:43]} {[%emt 00:00:05]} 69. Kxf5 {[%clk 00:02:12]} {[%emt 00:00:23]} Qf1
{[%clk 00:06:04]} {[%emt 00:01:08]} 70. h4 {[%clk 00:01:45]} {[%emt 00:00:56]}
Qh3+ {[%clk 00:05:50]} {[%emt 00:00:44]} 71. Kg5 {[%clk 00:02:08]} {[%emt
00:00:07]} Qg3+ {[%clk 00:06:06]} {[%emt 00:00:14]} 72. Kh5 {[%clk 00:02:30]}
{[%emt 00:00:07]} Kd7 {[%clk 00:06:20]} {[%emt 00:00:17]} 73. Qf5+ {[%clk
00:02:40]} {[%emt 00:00:19]} 1-0

[Event "Goteborg Open 2018"]
[Site "Molnlycke kulturhus, Biblioteksgatan 2, Molnlycke, Sweden"]
[Date "2018.08.19"]
[Round "7.8"]
[White "Buzleta, Patrik"]
[Black "Lundstrom, Mattias"]
[Result "0-1"]
[TimeControl "15 minutes + 5 seconds per move from move one (Round 1 - 4) / 90 minutes + 30 seconds per move from move one (Round 5 - 8)"]
[WhiteFideId "1755463"]
[BlackFideId "1703536"]
[WhiteElo "1501"]
[BlackElo "2163"]

1. Nf3 {[%clk 01:30:58]} d5 {[%clk 01:30:15]} {[%emt 00:00:46]} 2. b3 {[%clk
01:31:11]} {[%emt 00:00:17]} Nf6 {[%clk 01:30:14]} {[%emt 00:00:31]} 3. Bb2
{[%clk 01:31:22]} {[%emt 00:00:19]} e6 {[%clk 01:30:24]} {[%emt 00:00:20]} 4.
e3 {[%clk 01:30:36]} {[%emt 00:01:16]} Bd6 {[%clk 01:29:09]} {[%emt 00:01:44]}
5. a3 {[%clk 01:29:41]} {[%emt 00:01:26]} c5 {[%clk 01:24:51]} {[%emt
00:04:47]} 6. d3 {[%clk 01:29:42]} {[%emt 00:00:30]} Nc6 {[%clk 01:24:12]}
{[%emt 00:01:08]} 7. Nbd2 {[%clk 01:28:25]} {[%emt 00:01:47]} e5 {[%clk
01:22:19]} {[%emt 00:02:23]} 8. h3 {[%clk 01:28:14]} {[%emt 00:00:41]} Qe7
{[%clk 01:17:34]} {[%emt 00:05:15]} 9. Qe2 {[%clk 01:27:41]} {[%emt 00:01:03]}
Rb8 {[%clk 01:16:22]} {[%emt 00:01:42]} 10. g4 {[%clk 01:27:12]} {[%emt
00:00:59]} e4 {[%clk 01:14:17]} {[%emt 00:02:34]} 11. dxe4 {[%clk 01:25:51]}
{[%emt 00:01:52]} dxe4 {[%clk 01:14:38]} {[%emt 00:00:09]} 12. Nh4 {[%clk
01:19:24]} {[%emt 00:06:56]} Be5 {[%clk 01:14:30]} {[%emt 00:00:39]} 13. c3
{[%clk 01:13:02]} {[%emt 00:06:53]} Nd5 {[%clk 01:12:50]} {[%emt 00:02:08]} 14.
Nxe4 {[%clk 01:13:10]} {[%emt 00:00:23]} Qxh4 {[%clk 01:12:50]} {[%emt
00:00:29]} 15. O-O-O {[%clk 01:13:17]} {[%emt 00:00:23]} Nf6 {[%clk 01:09:13]}
{[%emt 00:04:08]} 16. Nxc5 {[%clk 01:09:17]} {[%emt 00:04:30]} Nxg4 {[%clk
00:56:09]} {[%emt 00:13:34]} 17. hxg4 {[%clk 01:03:35]} {[%emt 00:06:12]} Qxh1
{[%clk 00:56:10]} {[%emt 00:00:28]} 18. f4 {[%clk 01:03:52]} {[%emt 00:00:12]}
Bc7 {[%clk 00:56:05]} {[%emt 00:00:36]} 19. Bg2 {[%clk 01:03:22]} {[%emt
00:01:00]} Qh4 {[%clk 00:54:35]} {[%emt 00:02:00]} 20. Bf3 {[%clk 01:01:03]}
{[%emt 00:02:50]} Qe7 {[%clk 00:53:59]} {[%emt 00:01:04]} 21. b4 {[%clk
00:59:52]} {[%emt 00:01:41]} O-O {[%clk 00:52:47]} {[%emt 00:01:42]} 22. Rg1
{[%clk 00:58:29]} {[%emt 00:01:52]} b6 {[%clk 00:52:06]} {[%emt 00:01:12]} 23.
Ne4 {[%clk 00:58:27]} {[%emt 00:00:32]} Bb7 {[%clk 00:49:34]} {[%emt 00:03:01]}
24. g5 {[%clk 00:58:28]} {[%emt 00:00:30]} Ne5 {[%clk 00:45:02]} {[%emt
00:05:02]} 25. fxe5 {[%clk 00:46:37]} {[%emt 00:12:20]} Bxe4 {[%clk 00:45:12]}
{[%emt 00:00:20]} 26. Bxe4 {[%clk 00:44:51]} {[%emt 00:02:16]} g6 {[%clk
00:45:12]} {[%emt 00:00:30]} 27. Qh2 {[%clk 00:37:17]} {[%emt 00:08:04]} Bxe5
{[%clk 00:45:32]} {[%emt 00:00:11]} 28. Qh4 {[%clk 00:37:27]} {[%emt 00:00:18]}
h5 {[%clk 00:42:14]} {[%emt 00:03:49]} 29. Kc2 {[%clk 00:29:58]} {[%emt
00:07:58]} Rbd8 {[%clk 00:41:04]} {[%emt 00:01:41]} 30. Bd3 {[%clk 00:29:35]}
{[%emt 00:00:54]} Bg7 {[%clk 00:39:49]} {[%emt 00:01:43]} 31. Qf4 {[%clk
00:28:57]} {[%emt 00:00:53]} Qd6 {[%clk 00:35:16]} {[%emt 00:05:18]} 32. Qf1
{[%clk 00:28:42]} {[%emt 00:00:44]} Rfe8 {[%clk 00:32:36]} {[%emt 00:03:11]} 33.
Qe2 {[%clk 00:28:11]} {[%emt 00:00:59]} Re7 {[%clk 00:31:52]} {[%emt 00:01:16]}
34. Rd1 {[%clk 00:27:37]} {[%emt 00:01:05]} Qe5 {[%clk 00:31:32]} {[%emt
00:00:50]} 35. Bxg6 {[%clk 00:22:52]} {[%emt 00:05:15]} Rxd1 {[%clk 00:31:52]}
{[%emt 00:00:09]} 36. Bxf7+ {[%clk 00:23:09]} {[%emt 00:00:14]} Rxf7 {[%clk
00:31:40]} {[%emt 00:00:42]} 37. Qxd1 {[%clk 00:21:54]} {[%emt 00:01:45]} Rf2+
{[%clk 00:31:45]} {[%emt 00:00:24]} 38. Kb3 {[%clk 00:21:31]} {[%emt 00:00:55]}
Rxb2+ {[%clk 00:31:59]} {[%emt 00:00:15]} 0-1

[Event "Goteborg Open 2018"]
[Site "Molnlycke kulturhus, Biblioteksgatan 2, Molnlycke, Sweden"]
[Date "2018.08.19"]
[Round "7.9"]
[White "Al Waeli, Laith"]
[Black "Berg, Roy"]
[Result "1-0"]
[TimeControl "15 minutes + 5 seconds per move from move one (Round 1 - 4) / 90 minutes + 30 seconds per move from move one (Round 5 - 8)"]
[WhiteTitle "FM"]
[WhiteFideId "4801059"]
[BlackFideId "1711458"]
[WhiteElo "2084"]
[BlackElo "1957"]

1. d4 {[%clk 01:27:54]} {[%emt 00:03:05]} d5 {[%clk 01:30:48]} {[%emt
00:00:13]} 2. c4 {[%clk 01:28:15]} {[%emt 00:00:09]} c6 {[%clk 01:31:11]}
{[%emt 00:00:07]} 3. Nf3 {[%clk 01:28:39]} {[%emt 00:00:05]} Nf6 {[%clk
01:31:36]} {[%emt 00:00:07]} 4. e3 {[%clk 01:29:02]} {[%emt 00:00:07]} Bg4
{[%clk 01:22:40]} {[%emt 00:09:25]} 5. Qb3 {[%clk 01:28:28]} {[%emt 00:01:03]}
Qb6 {[%clk 01:18:10]} {[%emt 00:05:02]} 6. Nc3 {[%clk 01:28:43]} {[%emt
00:00:15]} e6 {[%clk 01:17:34]} {[%emt 00:01:06]} 7. Nh4 {[%clk 01:28:01]}
{[%emt 00:01:11]} Be7 {[%clk 01:11:22]} {[%emt 00:06:43]} 8. h3 {[%clk
01:28:21]} {[%emt 00:00:08]} Bh5 {[%clk 01:11:45]} {[%emt 00:00:08]} 9. g4
{[%clk 01:28:47]} {[%emt 00:00:05]} Bg6 {[%clk 01:11:27]} {[%emt 00:00:48]} 10.
Nxg6 {[%clk 01:28:35]} {[%emt 00:00:43]} hxg6 {[%clk 01:08:02]} {[%emt
00:03:55]} 11. Bg2 {[%clk 01:27:19]} {[%emt 00:01:45]} Na6 {[%clk 01:05:57]}
{[%emt 00:02:35]} 12. Bd2 {[%clk 01:18:12]} {[%emt 00:09:37]} Qxb3 {[%clk
00:55:50]} {[%emt 00:10:37]} 13. axb3 {[%clk 01:15:53]} {[%emt 00:02:48]} Nc7
{[%clk 00:52:20]} {[%emt 00:04:01]} 14. O-O {[%clk 01:10:56]} {[%emt 00:05:26]}
a6 {[%clk 00:48:37]} {[%emt 00:04:14]} 15. g5 {[%clk 01:04:28]} {[%emt
00:06:58]} Nd7 {[%clk 00:45:01]} {[%emt 00:04:06]} 16. e4 {[%clk 01:04:29]}
{[%emt 00:00:29]} dxe4 {[%clk 00:39:07]} {[%emt 00:06:24]} 17. Nxe4 {[%clk
01:03:44]} {[%emt 00:01:14]} O-O {[%clk 00:39:14]} {[%emt 00:00:23]} 18. Bf4
{[%clk 01:02:39]} {[%emt 00:01:34]} Ne8 {[%clk 00:34:17]} {[%emt 00:05:28]} 19.
h4 {[%clk 00:58:22]} {[%emt 00:04:47]} Rd8 {[%clk 00:33:44]} {[%emt 00:01:03]}
20. Rfd1 {[%clk 00:57:05]} {[%emt 00:01:47]} Nb6 {[%clk 00:32:05]} {[%emt
00:02:09]} 21. Nc5 {[%clk 00:57:04]} {[%emt 00:00:30]} Bxc5 {[%clk 00:27:25]}
{[%emt 00:05:11]} 22. dxc5 {[%clk 00:54:22]} {[%emt 00:03:12]} Nd7 {[%clk
00:27:17]} {[%emt 00:00:38]} 23. Rd2 {[%clk 00:53:55]} {[%emt 00:00:56]} f5
{[%clk 00:27:16]} {[%emt 00:00:31]} 24. Rad1 {[%clk 00:54:15]} {[%emt
00:00:09]} Rf7 {[%clk 00:27:24]} {[%emt 00:00:23]} 25. b4 {[%clk 00:49:02]}
{[%emt 00:05:42]} Re7 {[%clk 00:27:21]} {[%emt 00:00:33]} 26. Be5 {[%clk
00:49:08]} {[%emt 00:00:24]} Kf7 {[%clk 00:25:22]} {[%emt 00:02:29]} 27. b3
{[%clk 00:49:25]} {[%emt 00:00:13]} Nef6 {[%clk 00:23:52]} {[%emt 00:02:00]} 28.
gxf6 {[%clk 00:49:45]} {[%emt 00:00:11]} gxf6 {[%clk 00:24:07]} {[%emt
00:00:14]} 29. Bc7 {[%clk 00:50:10]} {[%emt 00:00:06]} 1-0

[Event "Goteborg Open 2018"]
[Site "Molnlycke kulturhus, Biblioteksgatan 2, Molnlycke, Sweden"]
[Date "2018.08.19"]
[Round "7.10"]
[White "Wellevit, Tomas"]
[Black "Strom-Engdahl, Alexander"]
[Result "1/2-1/2"]
[TimeControl "15 minutes + 5 seconds per move from move one (Round 1 - 4) / 90 minutes + 30 seconds per move from move one (Round 5 - 8)"]
[WhiteFideId "1731963"]
[BlackFideId "1741586"]
[WhiteElo "1905"]
[BlackElo "1747"]

1. e4 {[%clk 01:18:23]} {[%emt 00:12:36]} e5 {[%clk 01:30:40]} {[%emt
00:00:20]} 2. Nf3 {[%clk 01:18:44]} {[%emt 00:00:09]} Nf6 {[%clk 01:31:00]}
{[%emt 00:00:10]} 3. Bc4 {[%clk 01:18:53]} {[%emt 00:00:21]} Nxe4 {[%clk
01:30:20]} {[%emt 00:01:11]} 4. Nc3 {[%clk 01:18:51]} {[%emt 00:00:31]} Nf6
{[%clk 01:29:24]} {[%emt 00:01:26]} 5. Nxe5 {[%clk 01:19:05]} {[%emt 00:00:17]}
d5 {[%clk 01:29:52]} {[%emt 00:00:02]} 6. Bb3 {[%clk 01:19:23]} {[%emt
00:00:11]} c6 {[%clk 01:29:57]} {[%emt 00:00:26]} 7. d4 {[%clk 01:18:39]}
{[%emt 00:01:14]} Bd6 {[%clk 01:29:23]} {[%emt 00:01:05]} 8. Bg5 {[%clk
01:18:25]} {[%emt 00:00:44]} O-O {[%clk 01:28:16]} {[%emt 00:01:37]} 9. O-O
{[%clk 01:18:46]} {[%emt 00:00:09]} Re8 {[%clk 01:26:50]} {[%emt 00:01:56]} 10.
f4 {[%clk 01:17:51]} {[%emt 00:01:23]} Nbd7 {[%clk 01:25:32]} {[%emt 00:01:49]}
11. Kh1 {[%clk 01:17:36]} {[%emt 00:00:45]} Qc7 {[%clk 01:24:54]} {[%emt
00:01:08]} 12. Qf3 {[%clk 01:17:24]} {[%emt 00:00:43]} h6 {[%clk 01:23:52]}
{[%emt 00:01:33]} 13. Bh4 {[%clk 01:16:41]} {[%emt 00:01:12]} b5 {[%clk
01:22:56]} {[%emt 00:01:26]} 14. Rae1 {[%clk 01:05:39]} {[%emt 00:11:32]} Ba6
{[%clk 01:20:22]} {[%emt 00:03:04]} 15. Rg1 {[%clk 01:05:19]} {[%emt 00:00:49]}
b4 {[%clk 01:18:48]} {[%emt 00:02:05]} 16. Ne2 {[%clk 01:02:43]} {[%emt
00:03:06]} Ne4 {[%clk 01:18:21]} {[%emt 00:00:57]} 17. Ng3 {[%clk 01:02:04]}
{[%emt 00:01:08]} Nxg3+ {[%clk 01:13:21]} {[%emt 00:05:30]} 18. Qxg3 {[%clk
01:01:59]} {[%emt 00:00:35]} Nxe5 {[%clk 01:07:15]} {[%emt 00:06:37]} 19. fxe5
{[%clk 01:01:50]} {[%emt 00:00:39]} Be7 {[%clk 01:07:34]} {[%emt 00:00:10]} 20.
Re3 {[%clk 00:59:23]} {[%emt 00:02:56]} g5 {[%clk 01:02:55]} {[%emt 00:05:09]}
21. e6 {[%clk 00:57:38]} {[%emt 00:02:15]} Qxg3 {[%clk 01:01:24]} {[%emt
00:02:02]} 22. Bxg3 {[%clk 00:57:46]} {[%emt 00:00:22]} Bf6 {[%clk 01:01:08]}
{[%emt 00:00:46]} 23. exf7+ {[%emt 00:03:47]} Kxf7 {[%clk 01:01:17]} {[%emt
00:00:18]} 24. Rf3 {[%clk 00:55:00]} {[%emt 00:00:01]} Kg7 {[%clk 01:01:27]}
{[%emt 00:00:20]} 25. c3 {[%clk 00:54:54]} {[%emt 00:00:37]} Re6 {[%clk
00:58:48]} {[%emt 00:03:09]} 26. Rc1 {[%clk 00:49:51]} {[%emt 00:05:32]} Rae8
{[%clk 00:57:34]} {[%emt 00:01:45]} 27. h3 {[%clk 00:47:31]} {[%emt 00:02:49]}
Be2 {[%clk 00:52:06]} {[%emt 00:05:58]} 28. Rf2 {[%clk 00:46:36]} {[%emt
00:01:26]} bxc3 {[%clk 00:49:26]} {[%emt 00:03:11]} 29. bxc3 {[%clk 00:45:57]}
{[%emt 00:01:09]} Re3 {[%clk 00:45:40]} {[%emt 00:04:15]} 30. Bd6 {[%clk
00:45:27]} {[%emt 00:01:00]} Bb5 {[%clk 00:37:44]} {[%emt 00:08:25]} 31. Rb2
{[%clk 00:41:57]} {[%emt 00:04:00]} Be7 {[%clk 00:28:02]} {[%emt 00:10:13]} 32.
Bxe7 {[%clk 00:41:49]} {[%emt 00:00:39]} R8xe7 {[%clk 00:27:45]} {[%emt
00:00:46]} 33. Bxd5 {[%clk 00:42:09]} {[%emt 00:00:10]} Re1+ {[%clk 00:28:05]}
{[%emt 00:00:10]} 34. Rxe1 {[%clk 00:42:34]} {[%emt 00:00:05]} Rxe1+ {[%clk
00:28:29]} {[%emt 00:00:06]} 35. Kh2 {[%clk 00:42:53]} {[%emt 00:00:11]} Rc1
{[%clk 00:28:47]} {[%emt 00:00:12]} 36. Rb3 {[%clk 00:36:04]} {[%emt 00:07:19]}
cxd5 {[%clk 00:27:18]} {[%emt 00:01:59]} 37. Rxb5 {[%clk 00:36:25]} {[%emt
00:00:09]} Rxc3 {[%clk 00:27:47]} {[%emt 00:00:01]} 38. a4 {[%clk 00:29:51]}
{[%emt 00:09:23]} Rc4 {[%clk 00:26:38]} {[%emt 00:00:19]} 39. a5 {[%clk
00:29:46]} {[%emt 00:00:35]} Rxd4 {[%clk 00:26:52]} {[%emt 00:00:16]} 40. Rb7+
{[%clk 00:29:55]} {[%emt 00:00:22]} Kg6 {[%clk 00:27:14]} {[%emt 00:00:08]} 41.
Rxa7 {[%clk 00:30:16]} {[%emt 00:00:09]} Ra4 {[%clk 00:27:36]} {[%emt
00:00:07]} 42. g4 {[%clk 00:29:43]} {[%emt 00:01:03]} d4 {[%clk 00:27:56]}
{[%emt 00:00:10]} 43. Ra6+ {[%clk 00:29:25]} {[%emt 00:00:48]} Kg7 {[%clk
00:28:20]} {[%emt 00:00:06]} 44. Kg2 {[%clk 00:29:30]} {[%emt 00:00:24]} d3
{[%clk 00:28:43]} {[%emt 00:00:07]} 45. Kf3 {[%clk 00:29:56]} {[%emt 00:00:02]}
d2 {[%clk 00:29:08]} {[%emt 00:00:07]} 46. Ke2 {[%clk 00:30:22]} {[%emt
00:00:03]} Ra2 {[%clk 00:29:29]} {[%emt 00:00:10]} 47. Ra8 {[%clk 00:29:57]}
{[%emt 00:00:55]} Kf7 {[%clk 00:29:41]} {[%emt 00:00:17]} 48. a6 {[%clk
00:30:25]} {[%emt 00:00:03]} Kg6 {[%clk 00:30:02]} {[%emt 00:00:09]} 49. a7
{[%clk 00:30:53]} {[%emt 00:00:03]} Kg7 {[%clk 00:30:26]} {[%emt 00:00:05]} 50.
Kd1 {[%clk 00:30:43]} {[%emt 00:00:39]} Kh7 {[%clk 00:30:48]} {[%emt 00:00:09]}
1/2-1/2